[Event "Early-Titled-Tuesday-Blitz-February-20-2024"]
[Site "Chess.com"]
[Date "2024.02.20"]
[Round "2"]
[White "MaxLeto"]
[Black "Hope_6"]
[Result "1-0"]
[WhiteElo "2575"]
[BlackElo "2789"]
[TimeControl "180+1"]
[EndTime "8:16:59 PST"]
[Termination "MaxLeto won by resignation"]

1. g4 {[%clk 0:03:00.9]} 1... d5 {[%clk 0:02:55.5]} 2. Bg2 {[%clk 0:03:00.9]}
2... c6 {[%clk 0:02:55]} 3. h3 {[%clk 0:02:59.9]} 3... Nf6 {[%clk 0:02:45.4]} 4.
d4 {[%clk 0:02:59.2]} 4... h6 {[%clk 0:02:43.5]} 5. Nf3 {[%clk 0:02:54.2]} 5...
Nbd7 {[%clk 0:02:37]} 6. c3 {[%clk 0:02:42.9]} 6... e6 {[%clk 0:02:37.3]} 7. Bf4
{[%clk 0:02:41.6]} 7... c5 {[%clk 0:02:32.5]} 8. O-O {[%clk 0:02:29.4]} 8... Be7
{[%clk 0:02:30.9]} 9. e3 {[%clk 0:02:23.1]} 9... O-O {[%clk 0:02:29.4]} 10. Nbd2
{[%clk 0:02:19.3]} 10... c4 {[%clk 0:02:21.3]} 11. b3 {[%clk 0:02:01]} 11... b5
{[%clk 0:02:20.6]} 12. a4 {[%clk 0:02:00.2]} 12... b4 {[%clk 0:02:18.3]} 13.
bxc4 {[%clk 0:01:57.9]} 13... bxc3 {[%clk 0:02:17.9]} 14. Nb1 {[%clk 0:01:56.9]}
14... Ba6 {[%clk 0:02:09.6]} 15. c5 {[%clk 0:01:31]} 15... Bxf1 {[%clk
0:02:02.7]} 16. Bxf1 {[%clk 0:01:31.9]} 16... Ne4 {[%clk 0:02:02.6]} 17. Qc2
{[%clk 0:01:32.5]} 17... Qa5 {[%clk 0:01:57.6]} 18. Ra3 {[%clk 0:01:22.9]} 18...
g5 {[%clk 0:01:50]} 19. Bh2 {[%clk 0:01:14.4]} 19... Ndf6 {[%clk 0:01:40.3]} 20.
Ne5 {[%clk 0:01:08.5]} 20... Rab8 {[%clk 0:01:26.1]} 21. Nc6 {[%clk 0:01:00]}
21... Nd2 {[%clk 0:00:54.3]} 22. Nxc3 {[%clk 0:00:34.2]} 22... Nb1 {[%clk
0:00:38]} 23. Nxa5 {[%clk 0:00:10.4]} 23... Nxa3 {[%clk 0:00:36.3]} 24. Qa2
{[%clk 0:00:10.8]} 24... Rb4 {[%clk 0:00:21]} 25. Qxa3 {[%clk 0:00:10.6]} 1-0

[Event "Early-Titled-Tuesday-Blitz-February-20-2024"]
[Site "Chess.com"]
[Date "2024.02.20"]
[Round "2"]
[White "AmanteDeMoi"]
[Black "Lukianoo"]
[Result "0-1"]
[WhiteElo "2600"]
[BlackElo "2900"]
[TimeControl "180+1"]
[EndTime "8:17:00 PST"]
[Termination "Lukianoo won on time"]

1. Nf3 {[%clk 0:03:00.9]} 1... Nf6 {[%clk 0:02:59.6]} 2. e3 {[%clk 0:02:59.5]}
2... e6 {[%clk 0:02:59.7]} 3. b3 {[%clk 0:02:58.6]} 3... c5 {[%clk 0:02:58.8]}
4. Bb2 {[%clk 0:02:53.9]} 4... d5 {[%clk 0:02:58.6]} 5. Be2 {[%clk 0:02:53.5]}
5... Nc6 {[%clk 0:02:58.5]} 6. O-O {[%clk 0:02:53.6]} 6... Be7 {[%clk
0:02:58.9]} 7. d4 {[%clk 0:02:52.5]} 7... cxd4 {[%clk 0:02:58.5]} 8. Nxd4 {[%clk
0:02:50.8]} 8... O-O {[%clk 0:02:56.6]} 9. Nxc6 {[%clk 0:02:49]} 9... bxc6
{[%clk 0:02:56.4]} 10. c4 {[%clk 0:02:48.7]} 10... Ba6 {[%clk 0:02:55.2]} 11.
Qc2 {[%clk 0:02:46.8]} 11... Rb8 {[%clk 0:02:51.7]} 12. Rd1 {[%clk 0:02:43.6]}
12... Qb6 {[%clk 0:02:49.2]} 13. Nd2 {[%clk 0:02:43.2]} 13... Rfd8 {[%clk
0:02:43.8]} 14. c5 {[%clk 0:02:31.5]} 14... Qb7 {[%clk 0:02:42.1]} 15. Bxa6
{[%clk 0:02:30.5]} 15... Qxa6 {[%clk 0:02:43]} 16. Nf3 {[%clk 0:02:30.9]} 16...
Nd7 {[%clk 0:02:40.4]} 17. Bd4 {[%clk 0:02:02.4]} 17... f6 {[%clk 0:02:33.2]}
18. e4 {[%clk 0:01:50.2]} 18... e5 {[%clk 0:02:32.3]} 19. exd5 {[%clk
0:01:50.5]} 19... cxd5 {[%clk 0:02:32]} 20. c6 {[%clk 0:01:32.5]} 20... Rbc8
{[%clk 0:02:32]} 21. c7 {[%clk 0:01:32.6]} 21... Re8 {[%clk 0:02:23.1]} 22. Be3
{[%clk 0:01:15]} 22... d4 {[%clk 0:02:19.3]} 23. Rac1 {[%clk 0:01:13.3]} 23...
Ba3 {[%clk 0:02:12]} 24. Qc4+ {[%clk 0:01:10.8]} 24... Qxc4 {[%clk 0:02:11.2]}
25. Rxc4 {[%clk 0:01:11.7]} 25... Nb6 {[%clk 0:02:11.4]} 26. Rc6 {[%clk
0:00:37.2]} 26... dxe3 {[%clk 0:02:10.7]} 27. fxe3 {[%clk 0:00:38.1]} 27... Kf7
{[%clk 0:01:53.6]} 28. Rd2 {[%clk 0:00:26.2]} 28... Re7 {[%clk 0:01:52.6]} 29.
Rdc2 {[%clk 0:00:26.4]} 29... Nd5 {[%clk 0:01:51.9]} 30. Rd2 {[%clk 0:00:11.3]}
30... Nb4 {[%clk 0:01:47.2]} 31. Rc5 {[%clk 0:00:09]} 31... Rcxc7 {[%clk
0:01:41.1]} 32. Ra5 {[%clk 0:00:09.2]} 32... Bc1 {[%clk 0:01:40.4]} 33. Re2
{[%clk 0:00:09.8]} 33... Red7 {[%clk 0:01:33.8]} 34. Kf2 {[%clk 0:00:09.4]}
34... Rc3 {[%clk 0:01:29.8]} 35. e4 {[%clk 0:00:08.8]} 35... Nd3+ {[%clk
0:01:29.7]} 36. Kg3 {[%clk 0:00:09]} 36... Nf4 {[%clk 0:01:29.6]} 37. Rf2 {[%clk
0:00:07.6]} 37... Be3 {[%clk 0:01:27.4]} 38. Rf1 {[%clk 0:00:07.9]} 38... Bb6
{[%clk 0:01:27]} 39. Ra4 {[%clk 0:00:07.2]} 39... Rd2 {[%clk 0:01:25.5]} 40. Rg1
{[%clk 0:00:02.5]} 40... Bxg1 {[%clk 0:01:24.7]} 41. Rxa7+ {[%clk 0:00:03.1]}
41... Bxa7 {[%clk 0:01:23.9]} 42. Kh4 {[%clk 0:00:04]} 42... Nxg2+ {[%clk
0:01:23]} 43. Kh5 {[%clk 0:00:04.1]} 43... Rxf3 {[%clk 0:01:22.5]} 44. h4 {[%clk
0:00:04.1]} 44... Rg3 {[%clk 0:01:19]} 0-1

[Event "Early-Titled-Tuesday-Blitz-February-20-2024"]
[Site "Chess.com"]
[Date "2024.02.20"]
[Round "2"]
[White "VladimirBugayev"]
[Black "GameOverBro"]
[Result "0-1"]
[WhiteElo "2264"]
[BlackElo "2517"]
[TimeControl "180+1"]
[EndTime "8:17:03 PST"]
[Termination "GameOverBro won on time"]

1. e4 {[%clk 0:03:00.9]} 1... d6 {[%clk 0:02:58.5]} 2. Nc3 {[%clk 0:03:00]} 2...
Nf6 {[%clk 0:02:59.1]} 3. Bc4 {[%clk 0:02:58.3]} 3... c6 {[%clk 0:02:58.5]} 4.
Bb3 {[%clk 0:02:57.1]} 4... Nbd7 {[%clk 0:02:58.3]} 5. d3 {[%clk 0:02:57.5]}
5... Nc5 {[%clk 0:02:58.4]} 6. f4 {[%clk 0:02:56.7]} 6... Nxb3 {[%clk 0:02:57]}
7. axb3 {[%clk 0:02:56.7]} 7... d5 {[%clk 0:02:56.6]} 8. e5 {[%clk 0:02:56]}
8... Ng4 {[%clk 0:02:53.5]} 9. h3 {[%clk 0:02:53.9]} 9... Nh6 {[%clk 0:02:53.3]}
10. g4 {[%clk 0:02:53.3]} 10... e6 {[%clk 0:02:45]} 11. Nf3 {[%clk 0:02:50.7]}
11... f6 {[%clk 0:02:44.1]} 12. d4 {[%clk 0:02:49.9]} 12... c5 {[%clk
0:02:42.8]} 13. Ne2 {[%clk 0:02:35.2]} 13... cxd4 {[%clk 0:02:42.5]} 14. Nexd4
{[%clk 0:02:35.3]} 14... fxe5 {[%clk 0:02:43]} 15. Nxe5 {[%clk 0:02:35.2]} 15...
Qh4+ {[%clk 0:02:38.1]} 16. Ke2 {[%clk 0:02:29.5]} 16... Bd6 {[%clk 0:02:30.1]}
17. Ndf3 {[%clk 0:02:07.8]} 17... Qe7 {[%clk 0:02:29.3]} 18. Be3 {[%clk
0:01:59.5]} 18... a5 {[%clk 0:02:25]} 19. c3 {[%clk 0:01:56.8]} 19... O-O {[%clk
0:02:20.6]} 20. b4 {[%clk 0:01:57]} 20... b6 {[%clk 0:02:14.9]} 21. Qd4 {[%clk
0:01:46.9]} 21... Ba6+ {[%clk 0:02:14.9]} 22. Kd2 {[%clk 0:01:43.8]} 22... axb4
{[%clk 0:02:15]} 23. cxb4 {[%clk 0:01:36.5]} 23... Bxb4+ {[%clk 0:02:14.2]} 24.
Kd1 {[%clk 0:01:31.9]} 24... Bc5 {[%clk 0:02:10.2]} 25. Qd2 {[%clk 0:01:27.5]}
25... Nf7 {[%clk 0:02:07.4]} 26. Nc6 {[%clk 0:01:12.8]} 26... Qc7 {[%clk
0:02:01.5]} 27. Ncd4 {[%clk 0:01:11.4]} 27... Rfe8 {[%clk 0:01:48.1]} 28. Rc1
{[%clk 0:01:10.8]} 28... Qd6 {[%clk 0:01:41.7]} 29. Nb3 {[%clk 0:00:58.6]} 29...
Rac8 {[%clk 0:01:34]} 30. Nxc5 {[%clk 0:00:53.2]} 30... bxc5 {[%clk 0:01:34.9]}
31. Qa5 {[%clk 0:00:53]} 31... Bc4 {[%clk 0:01:28]} 32. Qd2 {[%clk 0:00:37.3]}
32... Bb3+ {[%clk 0:01:26.8]} 33. Ke1 {[%clk 0:00:37]} 33... d4 {[%clk
0:01:26.4]} 34. Bf2 {[%clk 0:00:37.6]} 34... e5 {[%clk 0:01:24.6]} 35. fxe5
{[%clk 0:00:37]} 35... Nxe5 {[%clk 0:01:25.5]} 36. Nxe5 {[%clk 0:00:36.4]} 36...
Rxe5+ {[%clk 0:01:26.1]} 37. Kf1 {[%clk 0:00:37]} 37... Rf8 {[%clk 0:01:24.3]}
38. Kg1 {[%clk 0:00:33.9]} 38... Bd5 {[%clk 0:01:24.8]} 39. Rh2 {[%clk
0:00:33.9]} 39... Qe7 {[%clk 0:01:20.1]} 40. b4 {[%clk 0:00:28.2]} 40... Re2
{[%clk 0:01:18.3]} 41. Qd3 {[%clk 0:00:20.7]} 41... Rf3 {[%clk 0:01:06.4]} 42.
Qa6 {[%clk 0:00:16.8]} 42... Qe4 {[%clk 0:01:02]} 43. Qc8+ {[%clk 0:00:12.9]}
43... Rf8 {[%clk 0:01:01.8]} 44. Qxc5 {[%clk 0:00:06]} 44... Rfxf2 {[%clk
0:01:01.6]} 45. Qxd5+ {[%clk 0:00:01.7]} 45... Qxd5 {[%clk 0:01:00.9]} 0-1

[Event "Early-Titled-Tuesday-Blitz-February-20-2024"]
[Site "Chess.com"]
[Date "2024.02.20"]
[Round "2"]
[White "nj123456"]
[Black "Navyblue1"]
[Result "1-0"]
[WhiteElo "2453"]
[BlackElo "2134"]
[TimeControl "180+1"]
[EndTime "8:17:03 PST"]
[Termination "nj123456 won on time"]

1. e4 {[%clk 0:03:00.9]} 1... c5 {[%clk 0:02:56.9]} 2. c3 {[%clk 0:03:00.5]}
2... Nf6 {[%clk 0:02:51.5]} 3. e5 {[%clk 0:03:00.5]} 3... Nd5 {[%clk 0:02:51.4]}
4. d4 {[%clk 0:03:01.4]} 4... cxd4 {[%clk 0:02:50.9]} 5. Nf3 {[%clk 0:03:00.8]}
5... d6 {[%clk 0:02:48.7]} 6. cxd4 {[%clk 0:03:00.4]} 6... Nc6 {[%clk
0:02:47.2]} 7. Bc4 {[%clk 0:02:59.9]} 7... Nb6 {[%clk 0:02:43.7]} 8. Bb5 {[%clk
0:02:59.5]} 8... e6 {[%clk 0:02:43]} 9. O-O {[%clk 0:02:58.8]} 9... Bd7 {[%clk
0:02:38.4]} 10. Nc3 {[%clk 0:02:54.6]} 10... a6 {[%clk 0:02:24.5]} 11. Bd3
{[%clk 0:02:49.9]} 11... Be7 {[%clk 0:02:21.8]} 12. Qe2 {[%clk 0:02:45.9]} 12...
Nb4 {[%clk 0:02:13.1]} 13. Bb1 {[%clk 0:02:44.8]} 13... N4d5 {[%clk 0:02:09.9]}
14. Ne4 {[%clk 0:02:43.8]} 14... dxe5 {[%clk 0:02:06.3]} 15. Nxe5 {[%clk
0:02:14.2]} 15... Bb5 {[%clk 0:01:55.4]} 16. Qf3 {[%clk 0:02:03.9]} 16... O-O
{[%clk 0:01:09]} 17. Rd1 {[%clk 0:01:56.2]} 17... Rc8 {[%clk 0:00:50.3]} 18. Qh3
{[%clk 0:01:32.2]} 18... f5 {[%clk 0:00:18.9]} 19. Nc3 {[%clk 0:01:24.9]} 19...
Nxc3 {[%clk 0:00:17.6]} 20. bxc3 {[%clk 0:01:25.8]} 20... Rxc3 {[%clk
0:00:16.9]} 21. Qxc3 {[%clk 0:01:24.6]} 21... Nd5 {[%clk 0:00:15.7]} 22. Qe1
{[%clk 0:01:16]} 22... Qb6 {[%clk 0:00:13.8]} 23. a4 {[%clk 0:01:07.1]} 23...
Be8 {[%clk 0:00:12]} 24. Ba2 {[%clk 0:01:02.5]} 24... Bh5 {[%clk 0:00:09]} 25.
f3 {[%clk 0:00:51]} 25... Bb4 {[%clk 0:00:08.1]} 26. Qf2 {[%clk 0:00:49.1]}
26... Bc3 {[%clk 0:00:07]} 27. Rb1 {[%clk 0:00:48.4]} 27... Qa5 {[%clk
0:00:05.2]} 28. Ba3 {[%clk 0:00:48]} 28... Rc8 {[%clk 0:00:04]} 29. Bc5 {[%clk
0:00:46.6]} 29... b6 {[%clk 0:00:03.6]} 30. Bxd5 {[%clk 0:00:46]} 30... exd5
{[%clk 0:00:03.1]} 31. Bxb6 {[%clk 0:00:45.7]} 31... Qxa4 {[%clk 0:00:03.4]} 32.
Bc5 {[%clk 0:00:43.9]} 32... Be8 {[%clk 0:00:02.6]} 33. h3 {[%clk 0:00:43]}
33... Ba5 {[%clk 0:00:01.2]} 34. Ra1 {[%clk 0:00:42.2]} 1-0

[Event "Early-Titled-Tuesday-Blitz-February-20-2024"]
[Site "Chess.com"]
[Date "2024.02.20"]
[Round "2"]
[White "DKmirl"]
[Black "Nouali_Mohamed"]
[Result "0-1"]
[WhiteElo "2321"]
[BlackElo "2542"]
[TimeControl "180+1"]
[EndTime "8:17:04 PST"]
[Termination "Nouali_Mohamed won on time"]

1. d4 {[%clk 0:03:00.9]} 1... Nf6 {[%clk 0:02:59.6]} 2. Nf3 {[%clk 0:02:56.5]}
2... g6 {[%clk 0:02:59.8]} 3. g3 {[%clk 0:02:49.2]} 3... Bg7 {[%clk 0:02:59.9]}
4. Bg2 {[%clk 0:02:48.9]} 4... O-O {[%clk 0:03:00.8]} 5. O-O {[%clk 0:02:49.5]}
5... d6 {[%clk 0:03:01.7]} 6. Nc3 {[%clk 0:02:49.1]} 6... Nbd7 {[%clk
0:03:01.1]} 7. e4 {[%clk 0:02:49.3]} 7... e5 {[%clk 0:03:00.7]} 8. Be3 {[%clk
0:02:49.9]} 8... exd4 {[%clk 0:02:58.8]} 9. Bxd4 {[%clk 0:02:46.2]} 9... Re8
{[%clk 0:02:59.7]} 10. Re1 {[%clk 0:02:44.4]} 10... c6 {[%clk 0:02:48.8]} 11.
Qd2 {[%clk 0:02:09.2]} 11... Qc7 {[%clk 0:02:46]} 12. Rad1 {[%clk 0:02:08.5]}
12... Ne5 {[%clk 0:02:35.3]} 13. b3 {[%clk 0:01:48.1]} 13... Bg4 {[%clk
0:02:32.3]} 14. Qf4 {[%clk 0:01:29.3]} 14... c5 {[%clk 0:01:55]} 15. Bxe5 {[%clk
0:01:20.1]} 15... dxe5 {[%clk 0:01:54.2]} 16. Qe3 {[%clk 0:01:18.1]} 16... Rad8
{[%clk 0:01:43.6]} 17. Nd5 {[%clk 0:00:58.1]} 17... Nxd5 {[%clk 0:01:42.6]} 18.
exd5 {[%clk 0:00:58.2]} 18... e4 {[%clk 0:01:42.4]} 19. h3 {[%clk 0:00:51.1]}
19... Bxf3 {[%clk 0:01:23.7]} 20. Bxf3 {[%clk 0:00:49.1]} 20... Bd4 {[%clk
0:01:19.2]} 21. Qxe4 {[%clk 0:00:17.8]} 21... Qxg3+ {[%clk 0:01:13.8]} 22. Kh1
{[%clk 0:00:15.4]} 22... Qxh3+ {[%clk 0:01:13.6]} 23. Kg1 {[%clk 0:00:15]} 23...
Rxe4 {[%clk 0:01:13.1]} 24. Bxe4 {[%clk 0:00:13.8]} 24... Qg3+ {[%clk
0:01:13.1]} 25. Kh1 {[%clk 0:00:13.4]} 25... Qh4+ {[%clk 0:01:09.7]} 26. Kg1
{[%clk 0:00:11.2]} 26... Qxf2+ {[%clk 0:01:10.6]} 27. Kh1 {[%clk 0:00:11.4]}
27... Re8 {[%clk 0:01:03.5]} 28. d6 {[%clk 0:00:06.4]} 28... Rxe4 {[%clk
0:01:01.6]} 29. Rxe4 {[%clk 0:00:04.7]} 29... Qf3+ {[%clk 0:01:02]} 30. Kh2
{[%clk 0:00:05.1]} 30... Qxe4 {[%clk 0:00:58.6]} 31. d7 {[%clk 0:00:04.2]} 31...
Qe2+ {[%clk 0:00:54]} 32. Kh1 {[%clk 0:00:02.9]} 32... Qxd1+ {[%clk 0:00:52.6]}
33. Kg2 {[%clk 0:00:02]} 33... Qe2+ {[%clk 0:00:51]} 0-1

[Event "Early-Titled-Tuesday-Blitz-February-20-2024"]
[Site "Chess.com"]
[Date "2024.02.20"]
[Round "2"]
[White "Cubitas"]
[Black "FairChess_on_YouTube"]
[Result "0-1"]
[WhiteElo "2668"]
[BlackElo "3070"]
[TimeControl "180+1"]
[EndTime "8:17:05 PST"]
[Termination "FairChess_on_YouTube won on time"]

1. e4 {[%clk 0:02:59.5]} 1... c5 {[%clk 0:02:58.8]} 2. Nc3 {[%clk 0:02:58.8]}
2... Nc6 {[%clk 0:02:57.4]} 3. f4 {[%clk 0:02:58.1]} 3... e6 {[%clk 0:02:56.4]}
4. Nf3 {[%clk 0:02:56.4]} 4... d5 {[%clk 0:02:56.6]} 5. Bb5 {[%clk 0:02:50.3]}
5... Ne7 {[%clk 0:02:54.9]} 6. Qe2 {[%clk 0:02:44.6]} 6... d4 {[%clk 0:02:41.5]}
7. Nd1 {[%clk 0:02:44.1]} 7... a6 {[%clk 0:02:41.1]} 8. Bxc6+ {[%clk 0:02:41.3]}
8... Nxc6 {[%clk 0:02:42]} 9. d3 {[%clk 0:02:39.2]} 9... Be7 {[%clk 0:02:40]}
10. O-O {[%clk 0:02:36.8]} 10... O-O {[%clk 0:02:40.6]} 11. Nf2 {[%clk
0:02:33.9]} 11... b5 {[%clk 0:02:40.6]} 12. e5 {[%clk 0:02:26.5]} 12... Nb4
{[%clk 0:02:28.7]} 13. Ne4 {[%clk 0:02:24.5]} 13... Bb7 {[%clk 0:02:28.4]} 14.
a3 {[%clk 0:02:19.7]} 14... Nd5 {[%clk 0:02:28.3]} 15. Bd2 {[%clk 0:02:17.9]}
15... Rc8 {[%clk 0:02:27.9]} 16. c4 {[%clk 0:01:44.5]} 16... dxc3 {[%clk
0:02:19.1]} 17. bxc3 {[%clk 0:01:43.4]} 17... Qd7 {[%clk 0:02:15.5]} 18. c4
{[%clk 0:01:30.3]} 18... Nb6 {[%clk 0:02:13.5]} 19. Ba5 {[%clk 0:01:28.9]} 19...
Na4 {[%clk 0:02:12.9]} 20. Rab1 {[%clk 0:01:24.3]} 20... Bc6 {[%clk 0:02:11.3]}
21. Rfd1 {[%clk 0:01:19.1]} 21... Rb8 {[%clk 0:02:02.6]} 22. d4 {[%clk
0:00:43.5]} 22... bxc4 {[%clk 0:01:41.6]} 23. Rxb8 {[%clk 0:00:37.7]} 23... Rxb8
{[%clk 0:01:40.1]} 24. dxc5 {[%clk 0:00:37.7]} 24... Bd5 {[%clk 0:01:09.5]} 25.
Bb4 {[%clk 0:00:13.7]} 25... a5 {[%clk 0:00:58.7]} 26. c6 {[%clk 0:00:13.2]}
26... Qa7+ {[%clk 0:00:57.5]} 27. Qf2 {[%clk 0:00:02.6]} 27... Qxf2+ {[%clk
0:00:56.5]} 28. Kxf2 {[%clk 0:00:02.7]} 28... axb4 {[%clk 0:00:56.6]} 29. c7
{[%clk 0:00:02.2]} 29... Rc8 {[%clk 0:00:52]} 30. Nd6 {[%clk 0:00:02.8]} 30...
Rxc7 {[%clk 0:00:52.2]} 31. axb4 {[%clk 0:00:03.4]} 31... c3 {[%clk 0:00:51.4]}
32. Nd4 {[%clk 0:00:03.5]} 32... Nb2 {[%clk 0:00:49.9]} 33. Ra1 {[%clk
0:00:02.2]} 33... c2 {[%clk 0:00:46.8]} 34. Nc6 {[%clk 0:00:01.1]} 34... Bxc6
{[%clk 0:00:45.8]} 0-1

[Event "Early-Titled-Tuesday-Blitz-February-20-2024"]
[Site "Chess.com"]
[Date "2024.02.20"]
[Round "2"]
[White "K_A_S_T_O_R"]
[Black "jaskol95"]
[Result "0-1"]
[WhiteElo "2848"]
[BlackElo "2593"]
[TimeControl "180+1"]
[EndTime "8:17:05 PST"]
[Termination "jaskol95 won by resignation"]

1. e4 {[%clk 0:02:57.3]} 1... e6 {[%clk 0:02:59.3]} 2. d4 {[%clk 0:02:57.3]}
2... d5 {[%clk 0:02:59.8]} 3. Nc3 {[%clk 0:02:57.9]} 3... Bb4 {[%clk 0:02:59.5]}
4. e5 {[%clk 0:02:58.3]} 4... Ne7 {[%clk 0:02:59.7]} 5. Bd2 {[%clk 0:02:58.2]}
5... b6 {[%clk 0:02:59.1]} 6. Bb5+ {[%clk 0:02:57.8]} 6... c6 {[%clk 0:02:58.2]}
7. Bd3 {[%clk 0:02:57.9]} 7... Ba6 {[%clk 0:02:48.9]} 8. Bxa6 {[%clk 0:02:56.9]}
8... Nxa6 {[%clk 0:02:49.2]} 9. Nce2 {[%clk 0:02:57.8]} 9... Bxd2+ {[%clk
0:02:47.8]} 10. Qxd2 {[%clk 0:02:58.7]} 10... c5 {[%clk 0:02:42.6]} 11. c3
{[%clk 0:02:58.3]} 11... Qd7 {[%clk 0:02:40.5]} 12. Nf3 {[%clk 0:02:58]} 12...
h6 {[%clk 0:02:39.6]} 13. O-O {[%clk 0:02:57.9]} 13... O-O {[%clk 0:02:35.1]}
14. Nf4 {[%clk 0:02:57]} 14... Rac8 {[%clk 0:02:25]} 15. Nh5 {[%clk 0:02:56.3]}
15... Ng6 {[%clk 0:02:12]} 16. Rfe1 {[%clk 0:02:48.2]} 16... Rc7 {[%clk
0:02:06.3]} 17. g3 {[%clk 0:02:40.1]} 17... Rfc8 {[%clk 0:02:00.3]} 18. Re2
{[%clk 0:02:36.8]} 18... cxd4 {[%clk 0:01:51.5]} 19. Nxd4 {[%clk 0:02:35.2]}
19... Nc5 {[%clk 0:01:50.6]} 20. f3 {[%clk 0:02:35.6]} 20... b5 {[%clk
0:01:47.6]} 21. Rd1 {[%clk 0:02:25.9]} 21... a5 {[%clk 0:01:46.4]} 22. a3 {[%clk
0:02:24.3]} 22... Rb8 {[%clk 0:01:30.2]} 23. Kg2 {[%clk 0:02:21.4]} 23... Rcb7
{[%clk 0:01:25]} 24. g4 {[%clk 0:02:11.5]} 24... b4 {[%clk 0:01:17.8]} 25. cxb4
{[%clk 0:02:10.3]} 25... axb4 {[%clk 0:01:17.6]} 26. Rc1 {[%clk 0:02:09]} 26...
bxa3 {[%clk 0:00:56]} 27. bxa3 {[%clk 0:02:08.9]} 27... Nb3 {[%clk 0:00:54.2]}
28. Nxb3 {[%clk 0:02:05.2]} 28... Rxb3 {[%clk 0:00:55.1]} 29. Rc3 {[%clk
0:02:02]} 29... Qa4 {[%clk 0:00:47.2]} 30. Qc1 {[%clk 0:01:52.5]} 30... Rb1
{[%clk 0:00:40.6]} 31. Qc2 {[%clk 0:01:41.7]} 31... Qd4 {[%clk 0:00:29.1]} 32.
Rd3 {[%clk 0:01:37.6]} 32... Qg1+ {[%clk 0:00:26.9]} 33. Kh3 {[%clk 0:01:37.1]}
33... Rf1 {[%clk 0:00:25.9]} 34. Rg2 {[%clk 0:01:36.1]} 34... Qh1 {[%clk
0:00:25.9]} 35. Kg3 {[%clk 0:01:33.5]} 35... Rg1 {[%clk 0:00:25.6]} 36. Rd2
{[%clk 0:01:33.3]} 36... Rxg2+ {[%clk 0:00:25.6]} 37. Rxg2 {[%clk 0:01:34.2]}
37... Qe1+ {[%clk 0:00:26.2]} 38. Rf2 {[%clk 0:01:34.4]} 38... Qxe5+ {[%clk
0:00:26.4]} 39. f4 {[%clk 0:01:34.7]} 39... Qe3+ {[%clk 0:00:24.5]} 40. Rf3
{[%clk 0:01:34.9]} 40... Qg1+ {[%clk 0:00:24.8]} 41. Kh3 {[%clk 0:01:35.4]}
41... Qe1 {[%clk 0:00:12.7]} 42. Qc3 {[%clk 0:01:35.1]} 42... Qh4+ {[%clk
0:00:13]} 43. Kg2 {[%clk 0:01:34.9]} 43... f6 {[%clk 0:00:10.4]} 44. h3 {[%clk
0:01:34.3]} 44... Kh7 {[%clk 0:00:09.3]} 45. Qc2 {[%clk 0:01:33.9]} 45... d4
{[%clk 0:00:07.9]} 46. f5 {[%clk 0:01:29.4]} 46... Ne5 {[%clk 0:00:07.9]} 47.
fxe6+ {[%clk 0:01:29.1]} 47... d3 {[%clk 0:00:08.5]} 48. Rxd3 {[%clk 0:01:29.2]}
48... Nxd3 {[%clk 0:00:07.4]} 49. Qxd3+ {[%clk 0:01:30.1]} 49... Kg8 {[%clk
0:00:08]} 50. e7 {[%clk 0:01:26.1]} 50... Rb2+ {[%clk 0:00:07.4]} 51. Kh1 {[%clk
0:01:24.7]} 51... Qe1+ {[%clk 0:00:07.3]} 0-1

[Event "Early-Titled-Tuesday-Blitz-February-20-2024"]
[Site "Chess.com"]
[Date "2024.02.20"]
[Round "2"]
[White "VladimirKramnik"]
[Black "soloderisas"]
[Result "1-0"]
[WhiteElo "2951"]
[BlackElo "2616"]
[TimeControl "180+1"]
[EndTime "8:17:06 PST"]
[Termination "VladimirKramnik won on time"]

1. e4 {[%clk 0:03:00.9]} 1... e5 {[%clk 0:02:54.4]} 2. Nf3 {[%clk 0:03:00.4]}
2... Nc6 {[%clk 0:02:54.5]} 3. g3 {[%clk 0:03:01]} 3... Nf6 {[%clk 0:02:53.6]}
4. d3 {[%clk 0:03:01]} 4... Bc5 {[%clk 0:02:53.9]} 5. Bg2 {[%clk 0:03:00.5]}
5... d6 {[%clk 0:02:54.2]} 6. c3 {[%clk 0:02:59.8]} 6... a6 {[%clk 0:02:53.6]}
7. O-O {[%clk 0:02:59.1]} 7... h6 {[%clk 0:02:53.8]} 8. Re1 {[%clk 0:02:59]}
8... O-O {[%clk 0:02:53.4]} 9. b4 {[%clk 0:02:58.2]} 9... Ba7 {[%clk 0:02:52.7]}
10. a4 {[%clk 0:02:58.6]} 10... Ne7 {[%clk 0:02:45.5]} 11. h3 {[%clk 0:02:51.5]}
11... Ng6 {[%clk 0:02:45]} 12. Nbd2 {[%clk 0:02:47]} 12... Bd7 {[%clk
0:02:32.4]} 13. d4 {[%clk 0:02:41.9]} 13... Re8 {[%clk 0:02:28.9]} 14. Bb2
{[%clk 0:02:39.9]} 14... Nh7 {[%clk 0:02:07.3]} 15. Qc2 {[%clk 0:02:28.7]} 15...
Qc8 {[%clk 0:01:53.9]} 16. Kh2 {[%clk 0:02:27.5]} 16... Ng5 {[%clk 0:01:52.8]}
17. Nxg5 {[%clk 0:02:27.2]} 17... hxg5 {[%clk 0:01:53.7]} 18. Nf1 {[%clk
0:02:25.3]} 18... Kh7 {[%clk 0:01:42.8]} 19. Ne3 {[%clk 0:02:22.8]} 19... Rh8
{[%clk 0:01:42.3]} 20. Nf5 {[%clk 0:02:11.5]} 20... Kg8 {[%clk 0:01:40.1]} 21.
Rad1 {[%clk 0:02:09.2]} 21... Qe8 {[%clk 0:01:30.6]} 22. Qe2 {[%clk 0:02:07.4]}
22... Bxa4 {[%clk 0:01:28.7]} 23. Rd2 {[%clk 0:02:07.7]} 23... Bd7 {[%clk
0:01:17.3]} 24. Qg4 {[%clk 0:01:51.7]} 24... Qd8 {[%clk 0:01:04.6]} 25. Kg1
{[%clk 0:01:43.7]} 25... Qf6 {[%clk 0:00:56.2]} 26. Rd3 {[%clk 0:01:43.4]} 26...
exd4 {[%clk 0:00:20.2]} 27. cxd4 {[%clk 0:01:39.2]} 27... Bxf5 {[%clk
0:00:17.7]} 28. Qxf5 {[%clk 0:01:30]} 28... Ne7 {[%clk 0:00:11.7]} 29. Qxf6
{[%clk 0:01:25.3]} 29... gxf6 {[%clk 0:00:11.6]} 30. e5 {[%clk 0:01:25.9]} 30...
fxe5 {[%clk 0:00:08.6]} 31. dxe5 {[%clk 0:01:26.4]} 31... d5 {[%clk 0:00:07.4]}
32. e6 {[%clk 0:01:21.7]} 32... Rh7 {[%clk 0:00:07.5]} 33. Bf6 {[%clk
0:01:16.9]} 33... Re8 {[%clk 0:00:05.8]} 34. Bxg5 {[%clk 0:01:08.1]} 34... fxe6
{[%clk 0:00:04]} 35. Rxe6 {[%clk 0:01:06.8]} 35... c6 {[%clk 0:00:03.7]} 36. Rf3
{[%clk 0:01:00]} 36... Rf7 {[%clk 0:00:03]} 37. h4 {[%clk 0:00:57.7]} 37... Rxf3
{[%clk 0:00:02.9]} 38. Bxf3 {[%clk 0:00:58.4]} 38... Bb6 {[%clk 0:00:02.6]} 39.
Bh5 {[%clk 0:00:56.2]} 1-0